[Event "Titled Tuesday Blitz July 11 Early 2023"]
[White "Mayaud, Raphael"]
[Black "Calhoun, Luke"]
[WhiteFideId "627151"]
[BlackFideId "2064421"]
[WhiteElo "2376"]
[BlackElo "2128"]
[Result "1-0"]
[Round "7"]
[TimeControl "180+2"]
[Date "2023.07.11"]
[WhiteClock "0:00:15"]
[BlackClock "0:00:04"]
[Board "159"]

1. d4 {[%clk 0:02:50]}  Nf6 {[%clk 0:02:56]} 2. Bg5 {[%clk 0:02:48]}  g6 {[%clk 0:02:55]} 3. Bxf6 {[%clk 0:02:48]}  exf6 {[%clk 0:02:55]} 4. e3 {[%clk 0:02:48]}  d5 {[%clk 0:02:55]} 5. g3 {[%clk 0:02:49]}  Bd6 {[%clk 0:02:50]} 6. Bg2 {[%clk 0:02:49]}  c6 {[%clk 0:02:49]} 7. Ne2 {[%clk 0:02:49]}  O-O {[%clk 0:02:48]} 8. Nd2 {[%clk 0:02:50]}  Bg4 {[%clk 0:02:43]} 9. O-O {[%clk 0:02:47]}  Re8 {[%clk 0:02:39]} 10. c4 {[%clk 0:02:47]}  dxc4 {[%clk 0:02:32]} 11. Nxc4 {[%clk 0:02:47]}  Bc7 {[%clk 0:02:31]} 12. Re1 {[%clk 0:02:22]}  Nd7 {[%clk 0:02:19]} 13. Qb3 {[%clk 0:02:19]}  Rb8 {[%clk 0:02:04]} 14. Rac1 {[%clk 0:02:00]}  Be6 {[%clk 0:01:49]} 15. Qc2 {[%clk 0:01:59]}  Nb6 {[%clk 0:01:42]} 16. b3 {[%clk 0:01:49]}  Nd5 {[%clk 0:01:29]} 17. Nc3 {[%clk 0:01:49]}  Nb4 {[%clk 0:01:23]} 18. Qd2 {[%clk 0:01:46]}  b5 {[%clk 0:00:58]} 19. Nb2 {[%clk 0:01:45]}  Ba5 {[%clk 0:00:57]} 20. a3 {[%clk 0:01:25]}  Na2 {[%clk 0:00:39]} 21. b4 {[%clk 0:01:19]}  Nxc1 {[%clk 0:00:39]} 22. Rxc1 {[%clk 0:01:17]}  Bc7 {[%clk 0:00:32]} 23. Bxc6 {[%clk 0:01:17]}  Bd7 {[%clk 0:00:32]} 24. Bf3 {[%clk 0:01:12]}  a6 {[%clk 0:00:25]} 25. Nd5 {[%clk 0:00:57]}  Bd6 {[%clk 0:00:23]} 26. Nd3 {[%clk 0:00:55]}  Be6 {[%clk 0:00:20]} 27. N5f4 {[%clk 0:00:50]}  Rc8 {[%clk 0:00:18]} 28. Nc5 {[%clk 0:00:47]}  Bxc5 {[%clk 0:00:17]} 29. bxc5 {[%clk 0:00:47]}  Qd7 {[%clk 0:00:15]} 30. d5 {[%clk 0:00:45]}  Bg4 {[%clk 0:00:15]} 31. Bg2 {[%clk 0:00:42]}  g5 {[%clk 0:00:14]} 32. Nd3 {[%clk 0:00:38]}  Red8 {[%clk 0:00:15]} 33. e4 {[%clk 0:00:37]}  f5 {[%clk 0:00:14]} 34. Ne5 {[%clk 0:00:33]}  Qe7 {[%clk 0:00:13]} 35. Nxg4 {[%clk 0:00:32]}  fxg4 {[%clk 0:00:13]} 36. d6 {[%clk 0:00:29]}  Qe5 {[%clk 0:00:11]} 37. Qd5 {[%clk 0:00:28]}  Qxd5 {[%clk 0:00:11]} 38. exd5 {[%clk 0:00:29]}  Rxd6 {[%clk 0:00:11]} 39. Kf1 {[%clk 0:00:19]}  Kf8 {[%clk 0:00:09]} 40. Ke2 {[%clk 0:00:18]}  Rd7 {[%clk 0:00:09]} 41. Kd3 {[%clk 0:00:15]}  Rdc7 {[%clk 0:00:09]} 42. Kd4 {[%clk 0:00:15]}  Ke7 {[%clk 0:00:09]} 43. d6+ {[%clk 0:00:15]}  Kd7 {[%clk 0:00:09]} 44. dxc7 {[%clk 0:00:15]}  Kxc7 {[%clk 0:00:10]} 45. c6 {[%clk 0:00:16]}  Rd8+ {[%clk 0:00:10]} 46. Bd5 {[%clk 0:00:16]}  f6 {[%clk 0:00:09]} 47. Re1 {[%clk 0:00:16]}  Kb6 {[%clk 0:00:10]} 48. Re7 {[%clk 0:00:16]}  Rc8 {[%clk 0:00:09]} 49. Rb7+ {[%clk 0:00:16]}  Ka5 {[%clk 0:00:09]} 50. c7 {[%clk 0:00:16]}  Ka4 {[%clk 0:00:08]} 51. Kc5 {[%clk 0:00:16]}  a5 {[%clk 0:00:09]} 52. Kc6 {[%clk 0:00:16]}  b4 {[%clk 0:00:07]} 53. axb4 {[%clk 0:00:16]}  axb4 {[%clk 0:00:07]} 54. Kd7 {[%clk 0:00:15]}  Rf8 {[%clk 0:00:07]} 55. c8=Q {[%clk 0:00:15]}  Rxc8 {[%clk 0:00:04]} 56. Kxc8 {[%clk 0:00:15]} 1-0


[Site "https://www.chess.com"]

[Event "Titled Tuesday Blitz July 11 Early 2023"]
[White "Horokoskii"]
[Black "Glavina, Pablo"]
[BlackFideId "100234"]
[WhiteElo "2135"]
[BlackElo "2379"]
[Result "1/2-1/2"]
[Round "7"]
[TimeControl "180+2"]
[Date "2023.07.11"]
[WhiteClock "0:01:38"]
[BlackClock "0:01:56"]
[Board "166"]

1. d4 {[%clk 0:02:54]}  Nf6 {[%clk 0:02:58]} 2. c4 {[%clk 0:02:54]}  e6 {[%clk 0:02:56]} 3. g3 {[%clk 0:02:54]}  d5 {[%clk 0:02:54]} 4. Bg2 {[%clk 0:02:53]}  b6 {[%clk 0:02:52]} 5. Nf3 {[%clk 0:02:51]}  Bb7 {[%clk 0:02:51]} 6. Ne5 {[%clk 0:02:48]}  Nbd7 {[%clk 0:02:47]} 7. O-O {[%clk 0:02:43]}  Bd6 {[%clk 0:02:46]} 8. cxd5 {[%clk 0:02:31]}  exd5 {[%clk 0:02:45]} 9. Nd3 {[%clk 0:02:27]}  O-O {[%clk 0:02:44]} 10. Bf4 {[%clk 0:02:26]}  Qe7 {[%clk 0:02:40]} 11. Nc3 {[%clk 0:02:25]}  Rfe8 {[%clk 0:02:39]} 12. Bg5 {[%clk 0:02:15]}  h6 {[%clk 0:02:35]} 13. Bxf6 {[%clk 0:02:11]}  Nxf6 {[%clk 0:02:33]} 14. Rc1 {[%clk 0:02:08]}  c5 {[%clk 0:02:30]} 15. dxc5 {[%clk 0:02:07]}  bxc5 {[%clk 0:02:31]} 16. e3 {[%clk 0:02:07]}  Rac8 {[%clk 0:02:30]} 17. b3 {[%clk 0:02:05]}  d4 {[%clk 0:02:27]} 18. exd4 {[%clk 0:02:01]}  Bxg2 {[%clk 0:02:27]} 19. Kxg2 {[%clk 0:01:57]}  cxd4 {[%clk 0:02:27]} 20. Na4 {[%clk 0:01:44]}  Rxc1 {[%clk 0:02:18]} 21. Nxc1 {[%clk 0:01:44]}  Qe5 {[%clk 0:02:08]} 22. Nd3 {[%clk 0:01:41]}  Qd5+ {[%clk 0:02:05]} 23. Qf3 {[%clk 0:01:39]}  Qxf3+ {[%clk 0:02:03]} 24. Kxf3 {[%clk 0:01:38]}  Nd5 {[%clk 0:01:56]} 1/2-1/2


[Site "https://www.chess.com"]

[Event "Titled Tuesday Blitz July 11 Early 2023"]
[White "Mikhaylova, Irina"]
[Black "Levine, David"]
[WhiteFideId "4109040"]
[BlackFideId "2011611"]
[WhiteElo "2279"]
[BlackElo "2025"]
[Result "1-0"]
[Round "7"]
[TimeControl "180+2"]
[Date "2023.07.11"]
[WhiteClock "0:01:05"]
[BlackClock "0:00:00"]
[Board "167"]

1. Nf3 {[%clk 0:03:00]}  Nf6 {[%clk 0:02:58]} 2. c4 {[%clk 0:03:01]}  e6 {[%clk 0:02:57]} 3. Nc3 {[%clk 0:03:01]}  d5 {[%clk 0:02:57]} 4. d4 {[%clk 0:03:02]}  dxc4 {[%clk 0:02:55]} 5. Bg5 {[%clk 0:03:02]}  a6 {[%clk 0:02:53]} 6. a4 {[%clk 0:03:02]}  Nc6 {[%clk 0:02:51]} 7. e4 {[%clk 0:03:01]}  h6 {[%clk 0:02:49]} 8. Bxf6 {[%clk 0:03:01]}  Qxf6 {[%clk 0:02:47]} 9. e5 {[%clk 0:02:53]}  Qd8 {[%clk 0:02:47]} 10. Bxc4 {[%clk 0:02:53]}  Bb4 {[%clk 0:02:34]} 11. O-O {[%clk 0:02:52]}  O-O {[%clk 0:02:33]} 12. Rb1 {[%clk 0:02:42]}  Ne7 {[%clk 0:02:31]} 13. Qe2 {[%clk 0:02:38]}  Nd5 {[%clk 0:02:27]} 14. Nxd5 {[%clk 0:02:26]}  exd5 {[%clk 0:02:26]} 15. Bd3 {[%clk 0:02:27]}  Bg4 {[%clk 0:02:17]} 16. h3 {[%clk 0:02:26]}  Bxf3 {[%clk 0:02:17]} 17. Qxf3 {[%clk 0:02:27]}  c6 {[%clk 0:02:08]} 18. Qe3 {[%clk 0:02:19]}  f5 {[%clk 0:02:02]} 19. f4 {[%clk 0:02:05]}  Qe7 {[%clk 0:02:01]} 20. Kh2 {[%clk 0:02:05]}  Qe6 {[%clk 0:01:54]} 21. Rg1 {[%clk 0:02:00]}  g5 {[%clk 0:01:28]} 22. Rbf1 {[%clk 0:01:56]}  gxf4 {[%clk 0:01:24]} 23. Qxf4 {[%clk 0:01:51]}  Kh8 {[%clk 0:01:24]} 24. Bxf5 {[%clk 0:01:50]}  Bd2 {[%clk 0:01:12]} 25. Qxd2 {[%clk 0:01:46]}  Rxf5 {[%clk 0:01:11]} 26. Rxf5 {[%clk 0:01:46]}  Qxf5 {[%clk 0:01:11]} 27. Qxh6+ {[%clk 0:01:46]}  Kg8 {[%clk 0:01:10]} 28. Qf6 {[%clk 0:01:43]}  Qxf6 {[%clk 0:01:01]} 29. exf6 {[%clk 0:01:43]}  Kf7 {[%clk 0:01:01]} 30. Re1 {[%clk 0:01:27]}  Kxf6 {[%clk 0:00:59]} 31. g4 {[%clk 0:01:27]}  Rh8 {[%clk 0:00:40]} 32. Kg3 {[%clk 0:01:26]}  Rc8 {[%clk 0:00:20]} 33. b4 {[%clk 0:01:22]}  a5 {[%clk 0:00:19]} 34. bxa5 {[%clk 0:01:11]}  Ra8 {[%clk 0:00:19]} 35. h4 {[%clk 0:01:08]}  Rxa5 {[%clk 0:00:17]} 36. g5+ {[%clk 0:01:08]}  Kf7 {[%clk 0:00:15]} 37. Kg4 {[%clk 0:01:06]}  Rxa4 {[%clk 0:00:15]} 38. Kf5 {[%clk 0:01:06]}  Rxd4 {[%clk 0:00:11]} 39. g6+ {[%clk 0:01:07]}  Kf8 {[%clk 0:00:10]} 40. h5 {[%clk 0:01:06]}  Rh4 {[%clk 0:00:09]} 41. Kg5 {[%clk 0:01:05]}  Rh2 {[%clk 0:00:09]} 42. h6 {[%clk 0:01:04]}  Rg2+ {[%clk 0:00:07]} 43. Kf6 {[%clk 0:01:04]}  Rf2+ {[%clk 0:00:00]} 44. Ke6 {[%clk 0:01:05]} 1-0


[Site "https://www.chess.com"]

[Event "Titled Tuesday Blitz July 11 Early 2023"]
[White "Adla, Diego"]
[Black "Lisjak, Zlatko"]
[WhiteFideId "100072"]
[BlackFideId "14502186"]
[WhiteElo "2495"]
[BlackElo "2153"]
[Result "0-1"]
[Round "7"]
[TimeControl "180+2"]
[Date "2023.07.11"]
[WhiteClock "0:00:45"]
[BlackClock "0:01:45"]
[Board "170"]

1. e4 {[%clk 0:03:00]}  d6 {[%clk 0:02:59]} 2. d4 {[%clk 0:03:00]}  Nf6 {[%clk 0:03:00]} 3. Nc3 {[%clk 0:02:58]}  c6 {[%clk 0:03:00]} 4. f3 {[%clk 0:02:52]}  Qb6 {[%clk 0:02:59]} 5. Be3 {[%clk 0:02:52]}  Qxb2 {[%clk 0:02:58]} 6. Rb1 {[%clk 0:02:49]}  Qxc3+ {[%clk 0:02:57]} 7. Qd2 {[%clk 0:02:45]}  Qxd2+ {[%clk 0:02:56]} 8. Bxd2 {[%clk 0:02:46]}  e5 {[%clk 0:02:54]} 9. dxe5 {[%clk 0:02:33]}  dxe5 {[%clk 0:02:53]} 10. Bc4 {[%clk 0:02:31]}  b5 {[%clk 0:02:51]} 11. Bb3 {[%clk 0:02:31]}  Nbd7 {[%clk 0:02:47]} 12. Ne2 {[%clk 0:02:27]}  Bc5 {[%clk 0:02:44]} 13. Ng3 {[%clk 0:02:17]}  g6 {[%clk 0:02:38]} 14. c4 {[%clk 0:02:08]}  a5 {[%clk 0:02:20]} 15. cxb5 {[%clk 0:02:01]}  cxb5 {[%clk 0:02:19]} 16. Rc1 {[%clk 0:01:55]}  a4 {[%clk 0:02:14]} 17. Bd5 {[%clk 0:01:46]}  Nxd5 {[%clk 0:02:11]} 18. exd5 {[%clk 0:01:47]}  f5 {[%clk 0:02:11]} 19. Ne2 {[%clk 0:01:34]}  b4 {[%clk 0:02:07]} 20. Rc4 {[%clk 0:01:19]}  Ba6 {[%clk 0:02:01]} 21. Rh4 {[%clk 0:01:17]}  Nf6 {[%clk 0:01:47]} 22. Bg5 {[%clk 0:00:45]}  Nxd5 {[%clk 0:01:45]} 0-1


[Site "https://www.chess.com"]

[Event "Titled Tuesday Blitz July 11 Early 2023"]
[White "Barbot, Pierre"]
[Black "HeinichessPY"]
[WhiteFideId "663727"]
[WhiteElo "2348"]
[BlackElo "2146"]
[Result "0-1"]
[Round "7"]
[TimeControl "180+2"]
[Date "2023.07.11"]
[WhiteClock "0:00:00"]
[BlackClock "0:00:20"]
[Board "171"]

1. d4 {[%clk 0:03:00]}  Nf6 {[%clk 0:02:59]} 2. c4 {[%clk 0:02:55]}  c5 {[%clk 0:02:59]} 3. d5 {[%clk 0:02:55]}  b5 {[%clk 0:03:00]} 4. Nf3 {[%clk 0:02:43]}  g6 {[%clk 0:02:59]} 5. Qc2 {[%clk 0:02:43]}  Bg7 {[%clk 0:02:59]} 6. e4 {[%clk 0:02:37]}  d6 {[%clk 0:02:59]} 7. cxb5 {[%clk 0:02:32]}  O-O {[%clk 0:02:59]} 8. Nc3 {[%clk 0:02:31]}  a6 {[%clk 0:02:59]} 9. a4 {[%clk 0:02:30]}  Nbd7 {[%clk 0:02:54]} 10. Bf4 {[%clk 0:02:25]}  Qa5 {[%clk 0:02:54]} 11. Nd2 {[%clk 0:02:15]}  axb5 {[%clk 0:02:34]} 12. Bxb5 {[%clk 0:02:13]}  Nb6 {[%clk 0:02:27]} 13. O-O {[%clk 0:02:05]}  Ng4 {[%clk 0:02:20]} 14. Bc6 {[%clk 0:01:49]}  Rb8 {[%clk 0:02:15]} 15. Nb5 {[%clk 0:01:46]}  Ba6 {[%clk 0:01:58]} 16. Nb3 {[%clk 0:01:17]}  Qb4 {[%clk 0:01:58]} 17. Rfc1 {[%clk 0:01:05]}  Ne5 {[%clk 0:01:40]} 18. Bd2 {[%clk 0:00:29]}  Qc4 {[%clk 0:01:39]} 19. Bc3 {[%clk 0:00:15]}  Nxc6 {[%clk 0:01:15]} 20. dxc6 {[%clk 0:00:16]}  Nxa4 {[%clk 0:01:15]} 21. Nc7 {[%clk 0:00:08]}  Nxc3 {[%clk 0:01:05]} 22. bxc3 {[%clk 0:00:08]}  Rxb3 {[%clk 0:00:56]} 23. Nxa6 {[%clk 0:00:07]}  Rxc3 {[%clk 0:00:53]} 24. Qd1 {[%clk 0:00:03]}  Rxc1 {[%clk 0:00:47]} 25. Qxc1 {[%clk 0:00:04]}  Qb5 {[%clk 0:00:37]} 26. Ra2 {[%clk 0:00:04]}  Qxc6 {[%clk 0:00:30]} 27. Nb4 {[%clk 0:00:04]}  Qxe4 {[%clk 0:00:26]} 28. Nc2 {[%clk 0:00:04]}  Ra8 {[%clk 0:00:25]} 29. Rb2 {[%clk 0:00:03]}  Bxb2 {[%clk 0:00:22]} 30. Qxb2 {[%clk 0:00:00]}  Qxc2 {[%clk 0:00:20]} 0-1


[Site "https://www.chess.com"]

[Event "Titled Tuesday Blitz July 11 Early 2023"]
[White "Ho, In Hei Henry"]
[Black "Shapiro, Daniel"]
[WhiteFideId "6002552"]
[BlackFideId "2001780"]
[WhiteElo "2141"]
[BlackElo "2322"]
[Result "0-1"]
[Round "7"]
[TimeControl "180+2"]
[Date "2023.07.11"]
[WhiteClock "0:00:06"]
[BlackClock "0:00:15"]
[Board "173"]

1. d4 {[%clk 0:03:00]}  Nf6 {[%clk 0:02:59]} 2. c4 {[%clk 0:03:01]}  e6 {[%clk 0:02:59]} 3. Nc3 {[%clk 0:03:01]}  Bb4 {[%clk 0:02:59]} 4. Nf3 {[%clk 0:03:01]}  O-O {[%clk 0:02:56]} 5. Qc2 {[%clk 0:03:01]}  c5 {[%clk 0:02:52]} 6. e3 {[%clk 0:03:01]}  d6 {[%clk 0:02:44]} 7. Bd3 {[%clk 0:03:00]}  Nc6 {[%clk 0:02:41]} 8. O-O {[%clk 0:03:00]}  Qe7 {[%clk 0:02:32]} 9. Bd2 {[%clk 0:02:58]}  Ba5 {[%clk 0:02:28]} 10. Rfe1 {[%clk 0:02:58]}  a6 {[%clk 0:02:16]} 11. a3 {[%clk 0:02:58]}  Bc7 {[%clk 0:02:15]} 12. Rad1 {[%clk 0:02:55]}  b6 {[%clk 0:02:08]} 13. Ne4 {[%clk 0:02:54]}  h6 {[%clk 0:02:02]} 14. Bc3 {[%clk 0:02:37]}  Nxe4 {[%clk 0:01:58]} 15. Bxe4 {[%clk 0:02:36]}  Bb7 {[%clk 0:01:58]} 16. d5 {[%clk 0:02:25]}  Nd8 {[%clk 0:01:52]} 17. b4 {[%clk 0:02:15]}  e5 {[%clk 0:01:49]} 18. bxc5 {[%clk 0:02:13]}  bxc5 {[%clk 0:01:29]} 19. Rb1 {[%clk 0:02:12]}  Bc8 {[%clk 0:01:27]} 20. Qd2 {[%clk 0:02:03]}  f5 {[%clk 0:01:23]} 21. Bc2 {[%clk 0:02:02]}  e4 {[%clk 0:01:17]} 22. Nd4 {[%clk 0:01:50]}  cxd4 {[%clk 0:01:16]} 23. Qxd4 {[%clk 0:01:47]}  Rf6 {[%clk 0:01:04]} 24. Bb4 {[%clk 0:01:38]}  Rg6 {[%clk 0:00:57]} 25. c5 {[%clk 0:01:31]}  dxc5 {[%clk 0:00:47]} 26. Bxc5 {[%clk 0:01:31]}  Qe5 {[%clk 0:00:46]} 27. Qxe5 {[%clk 0:01:24]}  Bxe5 {[%clk 0:00:46]} 28. Red1 {[%clk 0:01:03]}  Nf7 {[%clk 0:00:44]} 29. Ba4 {[%clk 0:00:56]}  f4 {[%clk 0:00:24]} 30. exf4 {[%clk 0:00:49]}  Bxf4 {[%clk 0:00:24]} 31. Rb4 {[%clk 0:00:44]}  Bf5 {[%clk 0:00:20]} 32. Bc6 {[%clk 0:00:31]}  Rc8 {[%clk 0:00:16]} 33. Rb6 {[%clk 0:00:27]}  Ne5 {[%clk 0:00:16]} 34. Rxa6 {[%clk 0:00:18]}  Nxc6 {[%clk 0:00:16]} 35. dxc6 {[%clk 0:00:18]}  Rgxc6 {[%clk 0:00:16]} 36. Rxc6 {[%clk 0:00:16]}  Rxc6 {[%clk 0:00:16]} 37. Bb4 {[%clk 0:00:16]}  e3 {[%clk 0:00:15]} 38. fxe3 {[%clk 0:00:14]}  Bxe3+ {[%clk 0:00:15]} 39. Kf1 {[%clk 0:00:14]}  Rc2 {[%clk 0:00:15]} 40. Rd3 {[%clk 0:00:06]}  Bxd3+ {[%clk 0:00:15]} 0-1


[Site "https://www.chess.com"]

[Event "Titled Tuesday Blitz July 11 Early 2023"]
[White "Goughfather"]
[Black "Nugumanov, Bakhtiyar"]
[BlackFideId "13701797"]
[WhiteElo "2034"]
[BlackElo "2265"]
[Result "0-1"]
[Round "7"]
[TimeControl "180+2"]
[Date "2023.07.11"]
[WhiteClock "0:00:00"]
[BlackClock "0:00:42"]
[Board "177"]

1. d4 {[%clk 0:03:00]}  Nf6 {[%clk 0:02:59]} 2. Nc3 {[%clk 0:03:00]}  d5 {[%clk 0:02:57]} 3. Bf4 {[%clk 0:03:00]}  e6 {[%clk 0:02:58]} 4. Nb5 {[%clk 0:02:58]}  Na6 {[%clk 0:02:58]} 5. e3 {[%clk 0:02:57]}  Be7 {[%clk 0:02:57]} 6. Nf3 {[%clk 0:02:49]}  Bd7 {[%clk 0:02:38]} 7. a4 {[%clk 0:02:48]}  O-O {[%clk 0:02:35]} 8. Ne5 {[%clk 0:02:47]}  Be8 {[%clk 0:02:34]} 9. g4 {[%clk 0:02:45]}  c5 {[%clk 0:02:34]} 10. c3 {[%clk 0:02:28]}  Ne4 {[%clk 0:02:25]} 11. Bd3 {[%clk 0:02:04]}  Bh4 {[%clk 0:02:17]} 12. Rf1 {[%clk 0:01:57]}  f6 {[%clk 0:02:11]} 13. Nf3 {[%clk 0:01:56]}  Bg5 {[%clk 0:02:08]} 14. Bxe4 {[%clk 0:01:38]}  Bxf4 {[%clk 0:01:59]} 15. Bxh7+ {[%clk 0:01:38]}  Kxh7 {[%clk 0:01:57]} 16. exf4 {[%clk 0:01:38]}  cxd4 {[%clk 0:01:52]} 17. Nbxd4 {[%clk 0:01:34]}  Qe7 {[%clk 0:01:45]} 18. Qe2 {[%clk 0:01:22]}  Nc5 {[%clk 0:01:44]} 19. Nf5 {[%clk 0:01:00]}  Qc7 {[%clk 0:01:40]} 20. Ng3 {[%clk 0:00:43]}  Bg6 {[%clk 0:01:22]} 21. f5 {[%clk 0:00:38]}  exf5 {[%clk 0:01:21]} 22. gxf5 {[%clk 0:00:37]}  Rae8 {[%clk 0:01:22]} 23. fxg6+ {[%clk 0:00:19]}  Kxg6 {[%clk 0:01:23]} 24. O-O-O {[%clk 0:00:19]}  Rxe2 {[%clk 0:01:20]} 25. Nxe2 {[%clk 0:00:20]}  Re8 {[%clk 0:01:13]} 26. Nfd4 {[%clk 0:00:19]}  Nxa4 {[%clk 0:01:07]} 27. Rg1+ {[%clk 0:00:19]}  Kh7 {[%clk 0:01:05]} 28. Nf5 {[%clk 0:00:18]}  g6 {[%clk 0:01:03]} 29. Nfd4 {[%clk 0:00:16]}  Qb6 {[%clk 0:01:01]} 30. Rd2 {[%clk 0:00:16]}  Nc5 {[%clk 0:00:56]} 31. Kc2 {[%clk 0:00:10]}  Ne4 {[%clk 0:00:53]} 32. Rd3 {[%clk 0:00:10]}  Nxf2 {[%clk 0:00:53]} 33. Rgg3 {[%clk 0:00:09]}  Nxd3 {[%clk 0:00:52]} 34. Rh3+ {[%clk 0:00:10]}  Kg7 {[%clk 0:00:51]} 35. Kxd3 {[%clk 0:00:10]}  Qxb2 {[%clk 0:00:49]} 36. Nf4 {[%clk 0:00:10]}  Qb1+ {[%clk 0:00:47]} 37. Nc2 {[%clk 0:00:05]}  Qf1+ {[%clk 0:00:44]} 38. Kd2 {[%clk 0:00:00]}  Qxf4+ {[%clk 0:00:42]} 0-1


[Site "https://www.chess.com"]

[Event "Titled Tuesday Blitz July 11 Early 2023"]
[White "Lohani, Sujana"]
[Black "Hernandez Bermudez, Ulises Eduardo"]
[WhiteFideId "12311987"]
[BlackFideId "3902510"]
[WhiteElo "1918"]
[BlackElo "2172"]
[Result "1-0"]
[Round "7"]
[TimeControl "180+2"]
[Date "2023.07.11"]
[WhiteClock "0:00:19"]
[BlackClock "0:00:18"]
[Board "180"]

1. d4 {[%clk 0:02:55]}  d5 {[%clk 0:02:58]} 2. Nf3 {[%clk 0:02:56]}  Nf6 {[%clk 0:02:56]} 3. c4 {[%clk 0:02:57]}  c6 {[%clk 0:02:56]} 4. e3 {[%clk 0:02:45]}  Nbd7 {[%clk 0:02:52]} 5. Nc3 {[%clk 0:02:44]}  e6 {[%clk 0:02:51]} 6. Qc2 {[%clk 0:02:39]}  Bd6 {[%clk 0:02:50]} 7. Bd3 {[%clk 0:02:35]}  dxc4 {[%clk 0:02:34]} 8. Bxc4 {[%clk 0:02:31]}  b5 {[%clk 0:02:34]} 9. Bd3 {[%clk 0:02:29]}  Bb7 {[%clk 0:02:33]} 10. O-O {[%clk 0:02:26]}  O-O {[%clk 0:02:32]} 11. e4 {[%clk 0:02:24]}  e5 {[%clk 0:02:32]} 12. Bg5 {[%clk 0:02:21]}  Qb6 {[%clk 0:02:29]} 13. Bxf6 {[%clk 0:02:17]}  gxf6 {[%clk 0:02:24]} 14. d5 {[%clk 0:02:11]}  Rac8 {[%clk 0:02:13]} 15. Nh4 {[%clk 0:02:07]}  Rfd8 {[%clk 0:02:05]} 16. Nf5 {[%clk 0:02:04]}  Bf8 {[%clk 0:01:58]} 17. Qe2 {[%clk 0:01:52]}  b4 {[%clk 0:01:53]} 18. Na4 {[%clk 0:01:45]}  Qa5 {[%clk 0:01:48]} 19. b3 {[%clk 0:01:26]}  Nb6 {[%clk 0:01:31]} 20. Qg4+ {[%clk 0:00:57]}  Kh8 {[%clk 0:01:30]} 21. Qh4 {[%clk 0:00:55]}  Bg7 {[%clk 0:01:15]} 22. Nxb6 {[%clk 0:00:49]}  Qxb6 {[%clk 0:01:14]} 23. d6 {[%clk 0:00:43]}  c5 {[%clk 0:01:08]} 24. Bc4 {[%clk 0:00:43]}  Rxd6 {[%clk 0:00:47]} 25. Bxf7 {[%clk 0:00:39]}  Rc7 {[%clk 0:00:20]} 26. Bg6 {[%clk 0:00:36]}  Bf8 {[%clk 0:00:21]} 27. Nxd6 {[%clk 0:00:34]}  Qxd6 {[%clk 0:00:21]} 28. Rad1 {[%clk 0:00:31]}  Qe6 {[%clk 0:00:21]} 29. Bf5 {[%clk 0:00:31]}  Qf7 {[%clk 0:00:21]} 30. Rd8 {[%clk 0:00:30]}  Kg8 {[%clk 0:00:20]} 31. Rfd1 {[%clk 0:00:29]}  Bc6 {[%clk 0:00:19]} 32. Qh3 {[%clk 0:00:27]}  Kg7 {[%clk 0:00:18]} 33. Be6 {[%clk 0:00:26]}  Qe7 {[%clk 0:00:18]} 34. R1d3 {[%clk 0:00:25]}  f5 {[%clk 0:00:17]} 35. Rg3+ {[%clk 0:00:24]}  Kh8 {[%clk 0:00:18]} 36. Rg8# {[%clk 0:00:19]} 1-0


[Site "https://www.chess.com"]

[Event "Titled Tuesday Blitz July 11 Early 2023"]
[White "UgarteCesar"]
[Black "Skiadopoulos, Nikolaos"]
[BlackFideId "4200772"]
[WhiteElo "2234"]
[BlackElo "1925"]
[Result "1-0"]
[Round "7"]
[TimeControl "180+2"]
[Date "2023.07.11"]
[WhiteClock "0:00:34"]
[BlackClock "0:00:17"]
[Board "181"]

1. c4 {[%clk 0:03:00]}  Nf6 {[%clk 0:02:59]} 2. Nc3 {[%clk 0:03:00]}  e5 {[%clk 0:02:58]} 3. g3 {[%clk 0:03:00]}  d6 {[%clk 0:02:57]} 4. Bg2 {[%clk 0:03:00]}  g6 {[%clk 0:02:54]} 5. e3 {[%clk 0:02:59]}  Bg7 {[%clk 0:02:53]} 6. Nge2 {[%clk 0:02:59]}  O-O {[%clk 0:02:53]} 7. O-O {[%clk 0:02:59]}  Nc6 {[%clk 0:02:51]} 8. d4 {[%clk 0:02:59]}  exd4 {[%clk 0:02:50]} 9. Nxd4 {[%clk 0:03:00]}  Nxd4 {[%clk 0:02:47]} 10. exd4 {[%clk 0:03:01]}  Bg4 {[%clk 0:02:43]} 11. Qb3 {[%clk 0:02:59]}  b6 {[%clk 0:02:41]} 12. a4 {[%clk 0:02:58]}  Rb8 {[%clk 0:02:39]} 13. h3 {[%clk 0:02:57]}  Bd7 {[%clk 0:02:34]} 14. a5 {[%clk 0:02:56]}  bxa5 {[%clk 0:02:32]} 15. Qa3 {[%clk 0:02:56]}  c5 {[%clk 0:02:27]} 16. dxc5 {[%clk 0:02:53]}  dxc5 {[%clk 0:02:26]} 17. Qxc5 {[%clk 0:02:49]}  Qc8 {[%clk 0:02:16]} 18. Qxc8 {[%clk 0:02:41]}  Rfxc8 {[%clk 0:02:13]} 19. Rxa5 {[%clk 0:02:41]}  Rxc4 {[%clk 0:02:10]} 20. Rxa7 {[%clk 0:02:36]}  h5 {[%clk 0:02:05]} 21. Rd1 {[%clk 0:02:31]}  Be6 {[%clk 0:01:59]} 22. Kh2 {[%clk 0:02:13]}  h4 {[%clk 0:01:53]} 23. g4 {[%clk 0:01:46]}  Bxg4 {[%clk 0:01:49]} 24. hxg4 {[%clk 0:01:35]}  Nxg4+ {[%clk 0:01:49]} 25. Kg1 {[%clk 0:01:33]}  Bd4 {[%clk 0:01:32]} 26. Ne4 {[%clk 0:01:25]}  Bxa7 {[%clk 0:01:27]} 27. Bf3 {[%clk 0:01:08]}  Ne5 {[%clk 0:01:02]} 28. Bg2 {[%clk 0:01:00]}  Rc2 {[%clk 0:00:57]} 29. Bf4 {[%clk 0:00:49]}  Ng4 {[%clk 0:00:47]} 30. Bxb8 {[%clk 0:00:47]}  Bxb8 {[%clk 0:00:46]} 31. Rd8+ {[%clk 0:00:47]}  Kg7 {[%clk 0:00:46]} 32. Rxb8 {[%clk 0:00:47]}  Re2 {[%clk 0:00:44]} 33. Bf3 {[%clk 0:00:45]}  Re1+ {[%clk 0:00:44]} 34. Kg2 {[%clk 0:00:45]}  Ne5 {[%clk 0:00:44]} 35. Rb7 {[%clk 0:00:40]}  g5 {[%clk 0:00:40]} 36. Nxg5 {[%clk 0:00:38]}  Rb1 {[%clk 0:00:36]} 37. b4 {[%clk 0:00:36]}  Rb2 {[%clk 0:00:33]} 38. Nxf7 {[%clk 0:00:35]}  Nxf3 {[%clk 0:00:17]} 39. Kxf3 {[%clk 0:00:34]} 1-0


[Site "https://www.chess.com"]